fUST/lending_fUST_20241107
["ID","MTS","AMOUNT","RATE_DAILY","PERIOD"]
[341473068,1730917848391,-500.0,0.00027671,2]
[341473069,1730917848401,-500.0,0.00027671,2]
[341473070,1730917848410,-500.0,0.00027671,2]
[341473071,1730917848419,-500.0,0.00027671,2]
[341473072,1730917848428,-201.44585627,0.00027671,2]
[341473073,1730917848438,-631.44042112,0.00027671,2]
[341473074,1730917848447,-513.3388913,0.00027671,2]
[341473075,1730917848457,-513.31653381,0.00027671,2]
[341473076,1730917848466,-500.0,0.00027671,2]
[341473077,1730917848475,-622.67866678,0.00027671,2]
[341473078,1730917848484,-511.17020869,0.00027671,2]
[341473079,1730917848493,-507.28269997,0.00027671,2]
[341473080,1730917848502,-603.18125986,0.00027671,2]
[341473081,1730917848511,-510.11468055,0.00027671,2]
[341473082,1730917848521,-500.0,0.00027671,2]
[341473083,1730917848530,-500.0,0.00027671,2]
[341473084,1730917848539,-500.0,0.00027671,2]
[341473085,1730917848549,-500.0,0.00027671,2]
[341473086,1730917848558,-180.30921078,0.00027671,2]
[341473087,1730917848567,-621.35228309,0.00027671,2]
[341473088,1730917848576,-500.0,0.00027671,2]
[341473089,1730917848586,-500.0,0.00027671,2]
[341473090,1730917848595,-500.0,0.00027671,2]
[341473091,1730917848604,-500.0,0.00027671,2]
[341473092,1730917848614,-500.0,0.00027671,2]
[341473093,1730917848624,-503.31196164,0.00027671,2]
[341473094,1730917848633,-286.51778674,0.00027671,2]
[341473095,1730917848643,-500.0,0.00027671,2]
[341473096,1730917848652,-500.0,0.00027671,2]
[341473097,1730917848663,-409.01654304,0.00027671,2]
[341473098,1730917848672,-500.0,0.00027671,2]
[341473099,1730917848682,-500.0,0.00027671,2]
[341473100,1730917848692,-500.0,0.00027671,2]
[341473101,1730917848701,-500.0,0.00027671,2]
[341473102,1730917848710,-500.0,0.00027671,2]
[341473103,1730917848720,-511.0871772,0.00027671,2]
[341473104,1730917848729,-500.0,0.00027671,2]
[341473105,1730917848738,-500.0,0.00027671,2]
[341473106,1730917848747,-500.0,0.00027671,2]
[341473107,1730917848757,-500.0,0.00027671,2]
[341473108,1730917848766,-500.0,0.00027671,2]
[341473109,1730917848775,-500.0,0.00027671,2]
[341473110,1730917848785,-504.40099318,0.00027671,2]
[341473111,1730917848795,-500.0,0.00027671,2]
[341473112,1730917848804,-500.0,0.00027671,2]
[341473113,1730917848814,-500.0,0.00027671,2]
[341473114,1730917848825,-270.85638787,0.00027671,2]
[341473115,1730917848834,-511.7899279,0.00027671,2]
[341473116,1730917848843,-500.0,0.00027671,2]
[341473117,1730917848852,-500.0,0.00027671,2]
[341473118,1730917848863,-509.53901461,0.00027671,2]
[341473119,1730917848872,-500.0,0.00027671,2]
[341473120,1730917848882,-232.82595759,0.00027671,2]
[341473121,1730917848892,-500.0,0.00027671,2]
[341473122,1730917848903,-500.0,0.00027671,2]
[341473123,1730917848915,-507.17951078,0.00027671,2]
[341473124,1730917848925,-627.54615864,0.00027671,2]
[341473125,1730917848934,-458.47404901,0.00027671,2]
[341473126,1730917848943,-250.31478143,0.00027671,2]
[341473127,1730917848954,-500.0,0.00027671,2]
[341473128,1730917848963,-506.963845,0.00027671,2]
[341473129,1730917848973,-254.37968689,0.00027671,2]
[341473130,1730917848984,-500.0,0.00027671,2]
[341473131,1730917848994,-500.0,0.00027671,2]
[341473132,1730917849003,-500.0,0.00027671,2]
[341473133,1730917849012,-500.0,0.00027671,2]
[341473134,1730917849022,-500.0,0.00027671,2]
[341473135,1730917849031,-500.0,0.00027671,2]
[341473136,1730917849041,-500.0,0.00027671,2]
[341473137,1730917849051,-500.0,0.00027671,2]
[341473138,1730917849060,-984.70064036,0.00027671,2]
[341473139,1730917849070,-500.0,0.00027671,2]
[341473140,1730917849080,-596.78664689,0.00027671,2]
[341473141,1730917849088,-500.0,0.00027671,2]
[341473142,1730917849098,-500.0,0.00027671,2]
[341473143,1730917849107,-500.0,0.00027671,2]
[341473144,1730917849117,-207.01721544,0.00027671,2]
[341473145,1730917849126,-500.0,0.00027671,2]
[341473146,1730917849135,-500.0,0.00027671,2]
[341473147,1730917849144,-500.0,0.00027671,2]
[341473148,1730917849153,-500.0,0.00027671,2]
[341473149,1730917849163,-536.53,0.00027671,2]
[341473150,1730917849172,-500.0,0.00027671,2]
[341473151,1730917849182,-500.0,0.00027671,2]
[341473153,1730917849191,-507.66462134,0.00027671,2]
[341473155,1730917849201,-500.0,0.00027671,2]
[341473156,1730917849210,-500.0,0.00027671,2]
[341473158,1730917849220,-500.0,0.00027671,2]
[341473160,1730917849229,-500.0,0.00027671,2]
[341473162,1730917849238,-500.0,0.00027671,2]
[341473163,1730917849247,-500.0,0.00027671,2]
[341473165,1730917849256,-500.0,0.00027671,2]
[341473166,1730917849265,-500.0,0.00027671,2]
[341473167,1730917849274,-398.94383911,0.00027671,2]
[341473169,1730917849283,-500.0,0.00027671,2]
[341473171,1730917849292,-4459.2,0.00027671,2]
[341473172,1730917849301,-500.0,0.00027671,2]
[341473174,1730917849310,-2799.49,0.00027671,2]
[341473175,1730917849319,-500.0,0.00027671,2]
[341473176,1730917849328,-500.0,0.00027671,2]
[341473177,1730917849337,-500.0,0.00027671,2]
[341473178,1730917849346,-500.0,0.00027671,2]
[341473179,1730917849355,-500.0,0.00027671,2]
[341473180,1730917849365,-500.0,0.00027671,2]
[341473181,1730917849374,-500.0,0.00027671,2]
[341473182,1730917849383,-500.0,0.00027671,2]
[341473183,1730917849392,-500.0,0.00027671,2]
[341473184,1730917849402,-500.0,0.00027671,2]
[341473185,1730917849412,-500.0,0.00027671,2]
[341473186,1730917849421,-500.0,0.00027671,2]
[341473187,1730917849430,-500.0,0.00027671,2]
[341473188,1730917849440,-500.0,0.00027671,2]
[341473189,1730917849449,-500.0,0.00027671,2]
[341473190,1730917849459,-500.0,0.00027671,2]
[341473192,1730917849468,-500.0,0.00027671,2]
[341473194,1730917849477,-500.0,0.00027671,2]
[341473195,1730917849487,-500.0,0.00027671,2]
[341473197,1730917849496,-508.9499792,0.00027671,2]
[341473199,1730917849506,-500.0,0.00027671,2]
[341473201,1730917849515,-500.0,0.00027671,2]
[341473203,1730917849524,-500.0,0.00027671,2]
[341473205,1730917849534,-500.0,0.00027671,2]
[341473207,1730917849543,-536.22,0.00027671,2]
[341473209,1730917849552,-824.86,0.00027671,2]
[341473211,1730917849561,-500.0,0.00027671,2]
[341473213,1730917849570,-192.55403828,0.00027671,2]
[341473215,1730917849580,-500.0,0.00027671,2]
[341473217,1730917849589,-500.0,0.00027671,2]
[341473219,1730917849598,-500.0,0.00027671,2]
[341473221,1730917849608,-501.76212153,0.00027671,2]
[341473223,1730917849618,-500.0,0.00027671,2]
[341473225,1730917849626,-500.0,0.00027671,2]
[341473227,1730917849636,-500.0,0.00027671,2]
[341473229,1730917849645,-500.0,0.00027671,2]
[341473231,1730917849655,-996.05,0.00027671,2]
[341473233,1730917849666,-500.0,0.00027671,2]
[341473235,1730917849675,-500.0,0.00027671,2]
[341473237,1730917849685,-500.0,0.00027671,2]
[341473239,1730917849694,-500.0,0.00027671,2]
[341473241,1730917849704,-508.70673941,0.00027671,2]
[341473243,1730917849713,-500.0,0.00027671,2]
[341473245,1730917849722,-507.55565617,0.00027671,2]
[341473246,1730917849731,-152.97518147,0.00027671,2]
[341473248,1730917849741,-500.0,0.00027671,2]
[341473250,1730917849750,-493.25084273,0.00027673,5]
[341473252,1730917849759,-500.0,0.00027673,2]
[341473254,1730917849768,-160.3808089,0.00027673,5]
[341473256,1730917849778,-500.85955556,0.00027673,5]
[341473258,1730917849788,-501.23033179,0.00027673,5]
[341473260,1730917849797,-500.0,0.00027673,5]
[341473262,1730917849807,-500.0,0.00027673,5]
[341473264,1730917849817,-500.0,0.00027945,2]
[341473266,1730917849826,-500.0,0.00027945,2]
[341473268,1730917849835,-500.0,0.00027945,2]
[341473270,1730917849844,-500.0,0.00027945,2]
[341473272,1730917849854,-500.0,0.00027945,2]
[341473274,1730917849863,-500.0,0.00027945,2]
[341473283,1730917849944,-507.72890069,0.00027945,2]
[341473285,1730917849954,-500.0,0.00027945,2]
[341473287,1730917849964,-500.0,0.00027945,2]
[341473289,1730917849974,-500.0,0.00027945,2]
[341473291,1730917849984,-546.97594525,0.00027945,2]
[341473293,1730917849993,-500.0,0.00027945,2]
[341473295,1730917850003,-500.0,0.00027945,2]
[341473297,1730917850012,-503.71855784,0.00027945,2]
[341473299,1730917850024,-500.0,0.00027945,2]
[341473301,1730917850033,-503.58185941,0.00027945,2]
[341473303,1730917850042,-500.0,0.00027945,2]
[341473305,1730917850051,-325.03500419,0.00027945,2]
[341473307,1730917850061,-500.0,0.00027945,2]
[341473309,1730917850070,-513.44778347,0.00027945,2]
[341473311,1730917850080,-500.0,0.00027945,2]
[341473313,1730917850090,-500.0,0.00027945,2]
[341473315,1730917850100,-347.4592465,0.00027945,2]
[341473317,1730917850109,-500.0,0.00027945,2]
[341473319,1730917850119,-500.0,0.00027945,2]
[341473321,1730917850128,-516.13223049,0.00027945,2]
[341473323,1730917850137,-500.0,0.00027945,2]
[341473325,1730917850146,-478.09538804,0.00027945,2]
[341473327,1730917850155,-500.0,0.00027945,2]
[341473329,1730917850166,-500.0,0.00027945,2]
[341473331,1730917850175,-500.0,0.00027945,2]
[341473333,1730917850184,-500.0,0.00027945,2]
[341473335,1730917850193,-500.0,0.00027945,2]
[341473337,1730917850202,-500.0,0.00027945,2]
[341473339,1730917850211,-500.0,0.00027945,2]
[341473341,1730917850220,-500.0,0.00027945,2]
[341473343,1730917850230,-500.0,0.00027945,2]
[341473345,1730917850239,-500.0,0.00027945,2]
[341473347,1730917850248,-500.0,0.00027945,2]
[341473349,1730917850256,-500.0,0.00027945,2]
[341473351,1730917850266,-500.0,0.00027945,2]
[341473352,1730917850275,-536.53,0.00027945,2]
[341473354,1730917850284,-500.0,0.00027945,2]
[341473357,1730917850293,-500.0,0.00027945,2]
[341473358,1730917850303,-500.0,0.00027945,2]
[341473360,1730917850312,-500.0,0.00027945,2]
[341473362,1730917850321,-500.0,0.00027945,2]
[341473364,1730917850331,-500.0,0.00027945,2]
[341473366,1730917850341,-500.0,0.00027945,2]
[341473369,1730917850350,-500.0,0.00027945,2]
[341473370,1730917850360,-4459.2,0.00027945,2]
[341473372,1730917850369,-500.0,0.00027945,2]
[341473374,1730917850378,-2799.49,0.00027945,2]
[341473376,1730917850387,-500.0,0.00027945,2]
[341473378,1730917850397,-500.0,0.00027945,2]
[341473380,1730917850406,-500.0,0.00027945,2]
[341473382,1730917850416,-500.0,0.00027945,2]
[341473384,1730917850425,-500.0,0.00027945,2]
[341473386,1730917850435,-500.0,0.00027945,2]
[341473388,1730917850444,-500.0,0.00027945,2]
[341473390,1730917850453,-500.0,0.00027945,2]
[341473392,1730917850462,-229.93,0.00027945,2]
[341473394,1730917850472,-500.0,0.00027945,2]
[341473396,1730917850480,-500.0,0.00027945,2]
[341473398,1730917850489,-544.21337309,0.00027945,2]
[341473400,1730917850498,-500.0,0.00027945,2]
[341473402,1730917850507,-500.0,0.00027945,2]
[341473404,1730917850517,-500.0,0.00027945,2]
[341473406,1730917850526,-500.0,0.00027945,2]
[341473408,1730917850535,-500.0,0.00027945,2]
[341473410,1730917850544,-500.0,0.00027945,2]
[341473412,1730917850553,-500.0,0.00027945,2]
[341473414,1730917850563,-536.22,0.00027945,2]
[341473416,1730917850572,-824.86,0.00027945,2]
[341473418,1730917850581,-500.0,0.00027945,2]
[341473420,1730917850590,-217.49536119,0.00027945,2]
[341473422,1730917850599,-500.0,0.00027945,2]
[341473424,1730917850608,-500.0,0.00027945,2]
[341473426,1730917850618,-996.05,0.00027945,2]
[341473428,1730917850627,-500.0,0.00027945,2]
[341473430,1730917850636,-500.0,0.00027945,2]
[341473432,1730917850645,-549.73109224,0.00027945,2]
[341473434,1730917850654,-351.89465849,0.00027945,2]
[341473436,1730917850665,-500.0,0.00027945,2]
[341473438,1730917850674,-500.0,0.00027945,2]
[341473439,1730917850683,-30311.0,0.00028,30]
[341473441,1730917850692,-170.846,0.00028187,19]
[341473443,1730917850701,-159.799,0.000282,3]
[341473445,1730917850710,-500.0,0.00028219,2]
[341473447,1730917850719,-500.0,0.00028219,2]
[341473449,1730917850729,-618.9,0.00028219,2]
[341473451,1730917850738,-500.0,0.00028219,2]
[341473453,1730917850747,-345.256713,0.00028219,2]
[341473455,1730917850756,-500.0,0.00028219,2]
[341473457,1730917850764,-240.35898731,0.00028219,2]
[341473459,1730917850774,-500.0,0.00028219,2]
[341473461,1730917850783,-500.0,0.00028219,2]
[341473463,1730917850791,-500.0,0.00028219,2]
[341473465,1730917850800,-500.0,0.00028219,2]
[341473467,1730917850809,-500.0,0.00028219,2]
[341473469,1730917850818,-498.61418714,0.00028219,2]
[341473471,1730917850827,-500.0,0.00028219,2]
[341473473,1730917850838,-500.0,0.00028219,2]
[341473475,1730917850847,-209.56943152,0.00028219,2]
[341473477,1730917850856,-420.45657181,0.00028219,2]
[341473479,1730917850865,-500.0,0.00028219,2]
[341473482,1730917850875,-360.44984219,0.00028219,2]
[341473499,1730917851203,-500.0,0.00022809,2]
[341473501,1730917851213,-402.59037923,0.00022809,2]
[341473649,1730918205776,-1169.27083333,0.0002119,2]
[341473650,1730918205806,-194.47251314,0.00022708,2]
[341473651,1730918205848,-297.437813,0.00024465,2]
[341473652,1730918205889,-6607.1969617,0.00024938,2]
[341473653,1730918205922,-176.089912,0.00025177,2]
[341473654,1730918205959,-300.0,0.00025428,2]
[341473655,1730918206010,-300.0,0.00025429,2]
[341473656,1730918206065,-3000.0,0.0002543,2]
[341473657,1730918206104,-3189.98541608,0.00026473,2]
[341473658,1730918206142,-500.0,0.00026572,2]
[341473659,1730918206179,-500.0,0.00026572,2]
[341473660,1730918206216,-500.0,0.00026572,2]
[341473661,1730918206253,-500.0,0.00026572,2]
[341473662,1730918206287,-500.0,0.00026572,2]
[341473663,1730918206322,-500.0,0.00026572,2]
[341473664,1730918206361,-362.60006023,0.00026572,2]
[341473665,1730918206396,-500.0,0.00026572,2]
[341473666,1730918206432,-554.90474363,0.00026572,2]
[341473667,1730918206470,-299.08349378,0.00026572,2]
[341473669,1730918256314,-1169.27083333,0.0002107,2]
[341473670,1730918256345,-300.0,0.00026571,2]
[341473671,1730918256375,-300.0,0.00026571,2]
[341473672,1730918256404,-200.91650622,0.00026572,2]
[341473673,1730918256435,-500.0,0.00026572,2]
[341473674,1730918256467,-371.98443641,0.00026572,2]
[341473675,1730918256498,-500.0,0.00026572,2]
[341473676,1730918256530,-500.0,0.00026572,2]
[341473677,1730918256559,-500.0,0.00026572,2]
[341473678,1730918256605,-500.0,0.00026572,2]
[341473679,1730918256634,-500.0,0.00026572,2]
[341473680,1730918256665,-500.0,0.00026572,2]
[341473681,1730918256695,-500.0,0.00026572,2]
[341473682,1730918256724,-500.0,0.00026572,2]
[341473683,1730918256755,-500.0,0.00026572,2]
[341473684,1730918256785,-500.0,0.00026572,2]
[341473685,1730918256815,-500.0,0.00026572,2]
[341473686,1730918256848,-427.02044605,0.00026572,2]
[341473687,1730918257009,-500.0,0.00026572,2]
[341473688,1730918257044,-500.0,0.00026572,2]
[341473689,1730918257073,-500.0,0.00026572,2]
[341473690,1730918257102,-500.0,0.00026572,2]
[341473691,1730918257133,-500.0,0.00026572,2]
[341473692,1730918257161,-370.68486667,0.00026572,2]
[341473693,1730918257189,-500.0,0.00026572,2]
[341473694,1730918257218,-500.0,0.00026572,2]
[341473695,1730918257247,-500.0,0.00026572,2]
[341473696,1730918257277,-500.0,0.00026572,2]
[341473697,1730918257307,-500.0,0.00026572,2]
[341473698,1730918257336,-500.0,0.00026572,2]
[341473699,1730918257365,-500.0,0.00026572,2]
[341473700,1730918257395,-500.0,0.00026572,2]
[341473701,1730918257425,-500.0,0.00026572,2]
[341473702,1730918257455,-500.0,0.00026572,2]
[341473703,1730918257484,-500.0,0.00026572,2]
[341473704,1730918257516,-500.0,0.00026572,2]
[341473705,1730918257546,-603.00227178,0.00026572,2]
[341473706,1730918257577,-500.0,0.00026572,2]
[341473707,1730918257607,-500.0,0.00026572,2]
[341473708,1730918257636,-176.089912,0.00026894,2]
[341473709,1730918257663,-500.0,0.00027297,2]
[341473710,1730918257691,-210.52389674,0.00027297,9]
[341473711,1730918257720,-449.77855225,0.00027373,2]
[341473712,1730918257748,-621.96835653,0.00027373,2]
[341473713,1730918257776,-500.0,0.00027373,2]
[341473714,1730918257804,-500.0,0.00027373,2]
[341473715,1730918257835,-500.0,0.00027373,2]
[341473716,1730918257864,-500.0,0.00027373,2]
[341473717,1730918257896,-180.15920864,0.00027396,2]
[341473718,1730918257931,-487.96437055,0.00027396,2]
[341473719,1730918257963,-373.77377841,0.00027397,2]
[341473720,1730918257994,-500.0,0.00027397,2]
[341473721,1730918258023,-314.72661052,0.00027397,2]
[341473722,1730918258056,-500.0,0.00027397,2]
[341473723,1730918258084,-500.0,0.00027397,2]
[341473724,1730918258114,-500.0,0.00027397,2]
[341473725,1730918258143,-500.0,0.00027397,2]
[341473726,1730918258172,-181.87836537,0.00027397,2]
[341473727,1730918258199,-500.0,0.00027397,2]
[341473728,1730918258228,-500.0,0.00027397,2]
[341473729,1730918258256,-506.92665822,0.00027397,2]
[341473730,1730918258285,-500.0,0.00027397,2]
[341473731,1730918258314,-500.0,0.00027397,2]
[341473732,1730918258347,-500.0,0.00027397,2]
[341473733,1730918258378,-500.0,0.00027397,2]
[341473734,1730918258407,-500.0,0.00027397,2]
[341473735,1730918258437,-500.0,0.00027397,2]
[341473736,1730918258468,-500.0,0.00027397,2]
[341473737,1730918258498,-500.0,0.00027397,2]
[341473738,1730918258527,-507.01009758,0.00027397,2]
[341473739,1730918258555,-517.87198795,0.00027397,2]
[341473740,1730918258583,-500.0,0.00027397,2]
[341473741,1730918258611,-500.0,0.00027397,2]
[341473742,1730918258639,-247.54,0.00027397,2]
[341473743,1730918258667,-500.0,0.00027397,2]
[341473744,1730918258697,-871.54,0.00027397,2]
[341473745,1730918258728,-500.0,0.00027397,2]
[341473746,1730918258758,-500.0,0.00027397,2]
[341473747,1730918258786,-500.0,0.00027397,2]
[341473748,1730918258813,-530.10188665,0.00027397,2]
[341473749,1730918258843,-500.0,0.00027397,2]
[341473750,1730918258870,-513.83505788,0.00027397,2]
[341473751,1730918258897,-576.10342839,0.00027397,2]
[341473752,1730918258925,-500.0,0.00027397,2]
[341473753,1730918258953,-500.0,0.00027397,2]
[341473754,1730918258981,-548.7319602,0.00027397,2]
[341473755,1730918259009,-500.0,0.00027397,2]
[341473756,1730918259037,-500.0,0.00027397,2]
[341473757,1730918259065,-519.29843576,0.00027397,2]
[341473758,1730918259092,-500.0,0.00027397,2]
[341473759,1730918259120,-200.0,0.00027397,2]
[341473760,1730918259148,-508.88495406,0.00027397,2]
[341473761,1730918259175,-500.0,0.00027397,2]
[341473762,1730918259206,-500.0,0.00027397,2]
[341473763,1730918259234,-500.0,0.00027397,2]
[341473764,1730918259262,-513.52523236,0.00027397,2]
[341473765,1730918259289,-572.88979023,0.00027397,2]
[341473766,1730918259316,-500.0,0.00027397,2]
[341473767,1730918259344,-500.0,0.00027397,2]
[341473768,1730918259373,-500.0,0.00027397,2]
[341473769,1730918259401,-500.0,0.00027397,2]
[341473770,1730918259428,-500.0,0.00027397,2]
[341473771,1730918259456,-500.0,0.00027397,2]
[341473772,1730918259483,-418.22714482,0.00027397,2]
[341473773,1730918259513,-500.0,0.00027397,2]
[341473774,1730918259626,-500.0,0.00027397,2]
[341473775,1730918259659,-500.0,0.00027397,2]
[341473776,1730918259687,-500.0,0.00027397,2]
[341473777,1730918259715,-500.0,0.00027397,2]
[341473778,1730918259744,-500.0,0.00027397,2]
[341473779,1730918259771,-500.0,0.00027397,2]
[341473780,1730918259799,-577.64392067,0.00027397,2]
[341473781,1730918259828,-500.0,0.00027397,2]
[341473782,1730918259854,-500.0,0.00027397,2]
[341473783,1730918259883,-500.0,0.00027397,2]
[341473784,1730918259909,-500.0,0.00027397,2]
[341473785,1730918259936,-500.0,0.00027397,2]
[341473786,1730918259963,-500.0,0.00027397,2]
[341473787,1730918259992,-509.840662,0.00027397,2]
[341473788,1730918260022,-500.0,0.00027397,2]
[341473789,1730918260054,-623.26797984,0.00027397,2]
[341473790,1730918260084,-500.0,0.00027397,2]
[341473791,1730918260113,-355.74310981,0.00027397,2]
[341473792,1730918260145,-504.03967886,0.00027397,2]
[341473793,1730918260173,-500.0,0.00027397,2]
[341473794,1730918260202,-500.0,0.00027397,2]
[341473795,1730918260230,-500.0,0.00027397,2]
[341473796,1730918260258,-500.0,0.00027397,2]
[341473797,1730918260286,-500.0,0.00027397,2]
[341473798,1730918260313,-154.93615645,0.00027397,2]
[341473799,1730918260341,-500.0,0.00027397,2]
[341473800,1730918260370,-2449.55,0.00027397,2]
[341473801,1730918260399,-500.0,0.00027397,2]
[341473802,1730918260428,-500.0,0.00027397,2]
[341473803,1730918260456,-500.0,0.00027397,2]
[341473804,1730918260487,-500.0,0.00027397,2]
[341473805,1730918260523,-500.0,0.00027397,2]
[341473806,1730918260552,-721.76,0.00027397,2]
[341473807,1730918260581,-4040.75,0.00027397,2]
[341473808,1730918260608,-500.0,0.00027397,2]
[341473809,1730918260637,-500.0,0.00027397,2]
[341473810,1730918260665,-500.0,0.00027397,2]
[341473811,1730918260693,-500.0,0.00027397,2]
[341473812,1730918260723,-500.0,0.00027397,2]
[341473813,1730918260755,-221.37392805,0.00027397,2]
[341473814,1730918260784,-500.0,0.00027397,2]
[341473815,1730918260813,-500.0,0.00027397,2]
[341473816,1730918260841,-500.0,0.00027397,2]
[341473817,1730918260870,-500.0,0.00027397,2]
[341473818,1730918260898,-500.0,0.00027397,2]
[341473819,1730918260927,-500.0,0.00027397,2]
[341473820,1730918260959,-500.0,0.00027397,2]
[341473821,1730918260989,-500.0,0.00027397,2]
[341473822,1730918261019,-500.0,0.00027397,2]
[341473823,1730918261051,-576.81369559,0.00027397,2]
[341473824,1730918261079,-500.0,0.00027397,2]
[341473825,1730918261107,-500.0,0.00027397,2]
[341473826,1730918261135,-501.00230403,0.00027397,2]
[341473827,1730918261163,-500.0,0.00027397,2]
[341473828,1730918261190,-500.0,0.00027397,2]
[341473829,1730918261217,-500.0,0.00027397,2]
[341473830,1730918261245,-500.0,0.00027397,2]
[341473831,1730918261272,-500.0,0.00027397,2]
[341473832,1730918261300,-349.48810005,0.00027397,2]
[341473833,1730918261326,-500.0,0.00027397,2]
[341473834,1730918261354,-500.0,0.00027397,2]
[341473835,1730918261381,-500.0,0.00027397,2]
[341473836,1730918261410,-261.1254018,0.00027478,5]
[341473837,1730918261437,-500.0,0.00027478,5]
[341473838,1730918261466,-749.42,0.00027651,3]
[341473839,1730918261495,-249.8,0.00027661,3]
[341473840,1730918261523,-1675.05,0.00027661,10]
[341473841,1730918261551,-3548.62,0.00027661,10]
[341473842,1730918261579,-2957.19,0.00027661,10]
[341473843,1730918261607,-2464.32,0.00027661,10]
[341473844,1730918261635,-576.82538593,0.00027671,2]
[341473845,1730918261662,-225.73763216,0.00027671,2]
[341473846,1730918261689,-500.0,0.00027671,2]
[341473847,1730918261718,-871.54,0.00027671,2]
[341473848,1730918261748,-500.0,0.00027671,2]
[341473849,1730918261775,-426.58,0.00027671,2]
[341473850,1730918261804,-500.0,0.00027671,2]
[341473851,1730918261831,-500.0,0.00027671,2]
[341473852,1730918261860,-500.0,0.00027671,2]
[341473853,1730918261887,-500.0,0.00027671,2]
[341473854,1730918261915,-500.0,0.00027671,2]
[341473855,1730918261943,-500.0,0.00027671,2]
[341473856,1730918261970,-399.17230441,0.00027671,2]
[341473857,1730918262002,-500.0,0.00027671,2]
[341473858,1730918262033,-500.0,0.00027671,2]
[341473859,1730918262066,-500.0,0.00027671,2]
[341473860,1730918262180,-465.58883379,0.00027671,2]
[341473861,1730918262210,-500.0,0.00027671,2]
[341473862,1730918262238,-500.0,0.00027671,2]
[341473863,1730918262274,-2449.55,0.00027671,2]
[341473864,1730918262302,-500.0,0.00027671,2]
[341473865,1730918262333,-500.0,0.00027671,2]
[341473866,1730918262363,-500.0,0.00027671,2]
[341473867,1730918262392,-500.0,0.00027671,2]
[341473868,1730918262419,-721.76,0.00027671,2]
[341473869,1730918262447,-4040.75,0.00027671,2]
[341473870,1730918262475,-500.0,0.00027671,2]
[341473871,1730918262511,-500.0,0.00027671,2]
[341473872,1730918262538,-166.86294551,0.00027671,2]
[341473873,1730918262566,-500.0,0.00027671,2]
[341473874,1730918262594,-578.55,0.00027671,2]
[341473875,1730918262622,-500.0,0.00027945,2]
[341473876,1730918262651,-871.54,0.00027945,2]
[341473877,1730918262679,-500.0,0.00027945,2]
[341473878,1730918262706,-500.0,0.00027945,2]
[341473879,1730918262734,-500.0,0.00027945,2]
[341473880,1730918262766,-500.0,0.00027945,2]
[341473881,1730918262794,-500.0,0.00027945,2]
[341473882,1730918262823,-500.0,0.00027945,2]
[341473883,1730918262850,-500.0,0.00027945,2]
[341473884,1730918262881,-500.0,0.00027945,2]
[341473885,1730918262911,-500.0,0.00027945,2]
[341473886,1730918262939,-500.0,0.00027945,2]
[341473887,1730918262967,-500.0,0.00027945,2]
[341473888,1730918262999,-500.0,0.00027945,2]
[341473889,1730918263029,-2449.55,0.00027945,2]